[Event "44th Chess Olympiad Women 2022"]
[Site "Chennai"]
[Date "2022.08.03"]
[Round "6.66"]
[White "Ahmed, Najla"]
[Black "Benson, Maud"]
[Result "0-1"]
[WhiteElo "1176"]
[BlackElo "1334"]
[Annotator "NA RC"]
[PlyCount "80"]
[EventDate "2022.??.??"]
[TimeControl "60"]

1. c4 {[%emt 0:00:04]} Nf6 {[%emt 0:00:16]} 2. d4 {[%emt 0:00:30]} g6 {[%emt 0:
00:00]} 3. Nc3 {[%emt 0:00:34]} Bg7 {[%emt 0:00:10]} 4. e4 {[%emt 0:00:36]} d6
{[%emt 0:00:12]} 5. Bd3 {[%emt 0:00:55]} O-O {[%emt 0:02:19]} 6. f4 {[%emt 0:
00:00]} e5 {[%emt 0:02:11]} 7. d5 {[%emt 0:05:28]} exf4 {[%emt 0:01:48]} 8.
Bxf4 {[%emt 0:00:24]} Nbd7 {[%emt 0:01:05]} 9. Nf3 {[%emt 0:00:51]} Nh5 {
[%emt 0:01:38]} 10. Bg5 {[%emt 0:02:15]} f6 {[%emt 0:01:09]} 11. Be3 {[%emt 0:
00:00]} Ne5 {[%emt 0:02:13]} 12. Be2 {[%emt 0:04:48]} Bg4 {[%emt 0:03:54]} 13.
Nd4 {[%emt 0:01:51]} Nxc4 {[%emt 0:09:58]} 14. Bxg4 {[%emt 0:04:35]} Nxe3 {
[%emt 0:00:33]} 15. Be6+ {[%emt 0:00:07]} Kh8 {[%emt 0:01:41]} 16. Qe2 {
[%emt 0:00:13]} Nf4 {[%emt 0:00:42]} 17. Qf3 {[%emt 0:14:47]} Nfxg2+ {[%emt 0:
00:00]} 18. Ke2 {[%emt 0:07:31]} f5 {[%emt 0:02:48]} 19. Nb3 {[%emt 0:14:46]}
fxe4 {[%emt 0:01:45]} 20. Qxe4 {[%emt 0:02:57]} Qg5 {[%emt 0:05:30]} 21. Rag1 {
[%emt 0:04:28]} Qe5 {[%emt 0:03:19]} 22. Qxe5 {[%emt 0:04:06]} Bxe5 {[%emt 0:
00:00]} 23. h4 {[%emt 0:01:15]} Bg3 {[%emt 0:01:56]} 24. Ne4 {[%emt 0:00:36]}
Bf4 {[%emt 0:07:27]} 25. Ng5 {[%emt 0:02:31]} Rae8 {[%emt 0:03:38]} 26. h5 {
[%emt 0:08:55]} Bxg5 {[%emt 0:01:03]} 27. hxg6 {[%emt 0:00:15]} h6 {[%emt 0:00:
00]} 28. Bf7 {[%emt 0:04:40]} Re5 {[%emt 0:02:16]} 29. Nd4 {[%emt 0:07:18]}
Nf5+ {[%emt 0:05:15]} 30. Kf3 {[%emt 0:01:58]} Nxd4+ {[%emt 0:03:04]} 31. Kxg2
{[%emt 0:00:06]} Kg7 {[%emt 0:01:26]} 32. Rh5 {[%emt 0:00:24]} Ne2 {[%emt 0:00:
00]} 33. Kf3 {[%emt 0:00:32]} Nxg1+ {[%emt 0:00:28]} 34. Kg4 {[%emt 0:00:45]}
Rxf7 {[%emt 0:02:13]} 35. gxf7 {[%emt 0:00:13]} Kxf7 {[%emt 0:00:34]} 36. Rh1 {
[%emt 0:00:44]} Ne2 {[%emt 0:00:27]} 37. Rf1+ {[%emt 0:00:10]} Kg6 {[%emt 0:00:
00]} 38. Kf3 {[%emt 0:01:49]} Rf5+ {[%emt 0:01:16]} 39. Kg2 {[%emt 0:00:10]}
Rxf1 {[%emt 0:01:05]} 40. Kxf1 {[%emt 0:00:03]} Nf4 {[%emt 0:00:25]} 0-1

[Event "44th Chess Olympiad Women 2022"]
[Site "Chennai"]
[Date "2022.08.03"]
[Round "6.66"]
[White "Felix, Tobi"]
[Black "Almusawi, Maram"]
[Result "1/2-1/2"]
[WhiteElo "1460"]
[BlackElo "1349"]
[Annotator "NA RC"]
[PlyCount "88"]
[EventDate "2022.??.??"]
[TimeControl "60"]

1. d4 {[%emt 0:00:05]} d5 {[%emt 0:00:30]} 2. Bf4 {[%emt 0:00:05]} e6 {[%emt 0:
00:00]} 3. e3 {[%emt 0:00:13]} Bd6 {[%emt 0:01:54]} 4. Bg3 {[%emt 0:00:05]} Nf6
{[%emt 0:00:37]} 5. Nf3 {[%emt 0:00:13]} c6 {[%emt 0:08:09]} 6. Nbd2 {[%emt 0:
00:00]} Qe7 {[%emt 0:03:10]} 7. Bd3 {[%emt 0:03:33]} Nbd7 {[%emt 0:04:11]} 8.
c3 {[%emt 0:03:27]} b6 {[%emt 0:05:55]} 9. Qe2 {[%emt 0:06:32]} e5 {[%emt 0:00:
00]} 10. dxe5 {[%emt 0:01:34]} Nxe5 {[%emt 0:00:11]} 11. Nxe5 {[%emt 0:00:53]}
Bxe5 {[%emt 0:00:12]} 12. Bxe5 {[%emt 0:00:38]} Qxe5 {[%emt 0:00:10]} 13. Nf3 {
[%emt 0:00:18]} Qc7 {[%emt 0:00:57]} 14. h3 {[%emt 0:02:49]} h6 {[%emt 0:01:46]
} 15. O-O {[%emt 0:01:11]} O-O {[%emt 0:00:37]} 16. Rfd1 {[%emt 0:04:35]} Re8 {
[%emt 0:02:15]} 17. c4 {[%emt 0:03:06]} dxc4 {[%emt 0:03:38]} 18. Bxc4 {
[%emt 0:00:08]} Be6 {[%emt 0:00:34]} 19. Rac1 {[%emt 0:02:46]} c5 {[%emt 0:00:
00]} 20. Bxe6 {[%emt 0:05:56]} Rxe6 {[%emt 0:00:16]} 21. Nd4 {[%emt 0:01:40]}
Rd6 {[%emt 0:06:10]} 22. Rd3 {[%emt 0:19:23]} Qd7 {[%emt 0:03:42]} 23. Qf3 {
[%emt 0:02:04]} Rd8 {[%emt 0:02:27]} 24. Rdc3 {[%emt 0:02:26]} cxd4 {[%emt 0:
00:00]} 25. Rc7 {[%emt 0:00:09]} Qe6 {[%emt 0:00:25]} 26. exd4 {[%emt 0:02:14]}
Rxd4 {[%emt 0:00:49]} 27. Qb7 {[%emt 0:00:29]} Qxa2 {[%emt 0:03:19]} 28. Rc8 {
[%emt 0:01:17]} Rxc8 {[%emt 0:03:04]} 29. Rxc8+ {[%emt 0:01:02]} Kh7 {[%emt 0:
00:00]} 30. Qc7 {[%emt 0:01:54]} Rd7 {[%emt 0:01:10]} 31. Qc2+ {[%emt 0:00:30]}
g6 {[%emt 0:00:42]} 32. Qc3 {[%emt 0:03:36]} Qe6 {[%emt 0:01:50]} 33. Kh2 {
[%emt 0:04:25]} Qd6+ {[%emt 0:01:44]} 34. g3 {[%emt 0:01:23]} Rd8 {[%emt 0:00:
00]} 35. Rc6 {[%emt 0:00:35]} Qd4 {[%emt 0:01:12]} 36. Rxf6 {[%emt 0:06:57]}
Qxc3 {[%emt 0:01:31]} 37. bxc3 {[%emt 0:00:08]} Kg7 {[%emt 0:00:05]} 38. Rc6 {
[%emt 0:00:11]} Rd2 {[%emt 0:00:49]} 39. Kg2 {[%emt 0:00:05]} Rc2 {[%emt 0:00:
00]} 40. Rc7 {[%emt 0:00:35]} a5 {[%emt 0:01:14]} 41. Rb7 {[%emt 0:30:38]} Rxc3
{[%emt 0:30:07]} 42. Rxb6 {[%emt 0:00:07]} Ra3 {[%emt 0:00:47]} 43. Ra6 {
[%emt 0:00:06]} Ra1 {[%emt 0:00:32]} 44. h4 {[%emt 0:01:49]} a4 {[%emt 0:00:38]
} 1/2-1/2

[Event "44th Chess Olympiad Women 2022"]
[Site "Chennai"]
[Date "2022.08.03"]
[Round "6.68"]
[White "Cabral, Sylvi"]
[Black "Oyenga, Justine Anassika"]
[Result "1/2-1/2"]
[WhiteElo "1100"]
[BlackElo "1223"]
[Annotator "NA RC"]
[PlyCount "80"]
[EventDate "2022.??.??"]
[TimeControl "60"]

1. e4 {[%emt 0:00:03]} c5 {[%emt 0:00:16]} 2. Nf3 {[%emt 0:00:18]} Nc6 {
[%emt 0:00:22]} 3. Bb5 {[%emt 0:00:39]} g6 {[%emt 0:00:55]} 4. O-O {[%emt 0:00:
00]} Bg7 {[%emt 0:00:07]} 5. c3 {[%emt 0:02:07]} Nf6 {[%emt 0:00:15]} 6. Re1 {
[%emt 0:04:26]} O-O {[%emt 0:00:34]} 7. d4 {[%emt 0:02:36]} a6 {[%emt 0:00:27]}
8. Bxc6 {[%emt 0:01:28]} dxc6 {[%emt 0:00:25]} 9. e5 {[%emt 0:06:40]} Ne8 {
[%emt 0:02:05]} 10. dxc5 {[%emt 0:02:10]} Qxd1 {[%emt 0:00:19]} 11. Rxd1 {
[%emt 0:00:13]} Bg4 {[%emt 0:00:10]} 12. Bf4 {[%emt 0:13:14]} Nc7 {[%emt 0:00:
00]} 13. h3 {[%emt 0:05:36]} Bxf3 {[%emt 0:01:13]} 14. gxf3 {[%emt 0:00:18]}
Ne6 {[%emt 0:00:32]} 15. Bg3 {[%emt 0:00:38]} Nxc5 {[%emt 0:00:21]} 16. Na3 {
[%emt 0:04:35]} b5 {[%emt 0:01:01]} 17. b4 {[%emt 0:05:00]} Ne6 {[%emt 0:00:43]
} 18. Rd7 {[%emt 0:10:38]} Rfe8 {[%emt 0:01:18]} 19. Nc2 {[%emt 0:06:33]} c5 {
[%emt 0:01:25]} 20. Ne3 {[%emt 0:12:15]} Rad8 {[%emt 0:02:09]} 21. Ra7 {
[%emt 0:03:37]} cxb4 {[%emt 0:02:10]} 22. cxb4 {[%emt 0:00:27]} Nd4 {[%emt 0:
00:00]} 23. Kg2 {[%emt 0:02:34]} Nc6 {[%emt 0:00:15]} 24. Rxa6 {[%emt 0:01:39]}
Nxe5 {[%emt 0:00:44]} 25. Bxe5 {[%emt 0:01:14]} Bxe5 {[%emt 0:00:31]} 26. Rc1 {
[%emt 0:02:29]} h5 {[%emt 0:02:58]} 27. Rc5 {[%emt 0:01:30]} Bd4 {[%emt 0:00:
00]} 28. Rxb5 {[%emt 0:00:43]} Bxe3 {[%emt 0:03:19]} 29. fxe3 {[%emt 0:00:16]}
f5 {[%emt 0:02:32]} 30. Rxg6+ {[%emt 0:01:33]} Kh7 {[%emt 0:00:43]} 31. Ra6 {
[%emt 0:00:53]} Rg8+ {[%emt 0:00:24]} 32. Kh2 {[%emt 0:01:50]} Rd2+ {[%emt 0:
00:00]} 33. Kh1 {[%emt 0:00:13]} Rdg2 {[%emt 0:00:49]} 34. h4 {[%emt 0:00:40]}
Rg1+ {[%emt 0:00:09]} 35. Kh2 {[%emt 0:00:20]} R8g2+ {[%emt 0:00:25]} 36. Kh3 {
[%emt 0:00:25]} Rg3+ {[%emt 0:01:25]} 37. Kh2 {[%emt 0:00:21]} R1g2+ {[%emt 0:
00:00]} 38. Kh1 {[%emt 0:00:15]} Rg1+ {[%emt 0:11:17]} 39. Kh2 {[%emt 0:00:29]}
R3g2+ {[%emt 0:00:20]} 40. Kh3 {[%emt 0:00:32]} Rf2 {[%emt 0:02:23]} 1/2-1/2

[Event "44th Chess Olympiad Women 2022"]
[Site "Chennai"]
[Date "2022.08.03"]
[Round "6.68"]
[White "Esse, Akua Kosife"]
[Black "Sagastegui, Thamara"]
[Result "0-1"]
[WhiteElo "1329"]
[BlackElo "1362"]
[Annotator "NA RC"]
[PlyCount "74"]
[EventDate "2022.??.??"]
[TimeControl "60"]

1. d4 {[%emt 0:00:05]} d5 {[%emt 0:00:05]} 2. c3 {[%emt 0:00:32]} Nf6 {[%emt 0:
00:00]} 3. e3 {[%emt 0:00:21]} c5 {[%emt 0:00:37]} 4. f4 {[%emt 0:03:51]} Bg4 {
[%emt 0:00:19]} 5. Be2 {[%emt 0:00:14]} Bxe2 {[%emt 0:03:36]} 6. Qxe2 {[%emt 0:
00:00]} e6 {[%emt 0:00:49]} 7. Qb5+ {[%emt 0:03:36]} Qd7 {[%emt 0:00:00]} 8.
Qxd7+ {[%emt 0:00:18]} Nbxd7 {[%emt 0:00:00]} 9. Nf3 {[%emt 0:00:51]} Ne4 {
[%emt 0:01:15]} 10. Ne5 {[%emt 0:01:20]} Ndf6 {[%emt 0:01:49]} 11. Nd2 {
[%emt 0:06:15]} Bd6 {[%emt 0:02:52]} 12. O-O {[%emt 0:02:05]} O-O {[%emt 0:00:
00]} 13. c4 {[%emt 0:01:22]} Nxd2 {[%emt 0:01:33]} 14. Bxd2 {[%emt 0:00:26]}
Ne4 {[%emt 0:00:14]} 15. Bc3 {[%emt 0:19:04]} Bxe5 {[%emt 0:02:31]} 16. fxe5 {
[%emt 0:01:04]} dxc4 {[%emt 0:06:19]} 17. Rf4 {[%emt 0:05:02]} Nxc3 {[%emt 0:
00:00]} 18. bxc3 {[%emt 0:00:16]} cxd4 {[%emt 0:00:17]} 19. exd4 {[%emt 0:00:
00]} b5 {[%emt 0:08:51]} 20. Rb1 {[%emt 0:00:36]} Rab8 {[%emt 0:00:18]} 21. Rf2
{[%emt 0:05:12]} Rb6 {[%emt 0:00:30]} 22. Rfb2 {[%emt 0:02:10]} Rfb8 {[%emt 0:
00:00]} 23. a3 {[%emt 0:02:29]} Kf8 {[%emt 0:04:55]} 24. Ra1 {[%emt 0:00:09]}
Ke7 {[%emt 0:05:04]} 25. Kf2 {[%emt 0:00:58]} f6 {[%emt 0:04:12]} 26. Re1 {
[%emt 0:01:30]} Rd8 {[%emt 0:04:41]} 27. Kf3 {[%emt 0:02:24]} fxe5 {[%emt 0:00:
00]} 28. Rxe5 {[%emt 0:00:31]} Rd5 {[%emt 0:00:06]} 29. Ke4 {[%emt 0:05:22]}
Kd6 {[%emt 0:03:33]} 30. Rxd5+ {[%emt 0:00:48]} exd5+ {[%emt 0:00:22]} 31. Kf5
{[%emt 0:00:09]} Rb7 {[%emt 0:08:35]} 32. Re2 {[%emt 0:02:55]} Rf7+ {[%emt 0:
00:00]} 33. Kg5 {[%emt 0:01:52]} Re7 {[%emt 0:05:28]} 34. Rxe7 {[%emt 0:04:51]}
Kxe7 {[%emt 0:00:03]} 35. h4 {[%emt 0:04:10]} a5 {[%emt 0:01:13]} 36. h5 {
[%emt 0:02:41]} b4 {[%emt 0:00:50]} 37. axb4 {[%emt 0:00:35]} axb4 {[%emt 0:00:
00]} 0-1

[Event "44th Chess Olympiad Women 2022"]
[Site "Chennai"]
[Date "2022.08.03"]
[Round "6.68"]
[White "Jacobs, Annelaine"]
[Black "De Souza, Ivana Claudia Eyram"]
[Result "1-0"]
[WhiteElo "1612"]
[BlackElo "1167"]
[Annotator "NA RC"]
[PlyCount "83"]
[EventDate "2022.??.??"]
[TimeControl "60"]

1. e4 {[%emt 0:00:03]} e5 {[%emt 0:00:06]} 2. Nf3 {[%emt 0:00:05]} Nc6 {
[%emt 0:00:08]} 3. Bb5 {[%emt 0:00:36]} a6 {[%emt 0:00:26]} 4. Bxc6 {[%emt 0:
00:00]} dxc6 {[%emt 0:00:14]} 5. d4 {[%emt 0:00:30]} exd4 {[%emt 0:02:03]} 6.
Qxd4 {[%emt 0:00:08]} Be6 {[%emt 0:02:09]} 7. Be3 {[%emt 0:19:11]} f6 {[%emt 0:
00:00]} 8. Nc3 {[%emt 0:02:43]} Bd6 {[%emt 0:05:09]} 9. O-O-O {[%emt 0:09:17]}
b6 {[%emt 0:12:57]} 10. Qd2 {[%emt 0:16:34]} Ne7 {[%emt 0:21:16]} 11. Bxb6 {
[%emt 0:12:13]} cxb6 {[%emt 0:07:37]} 12. Qxd6 {[%emt 0:00:11]} Qxd6 {[%emt 0:
00:00]} 13. Rxd6 {[%emt 0:00:09]} Bd7 {[%emt 0:02:44]} 14. Rhd1 {[%emt 0:01:34]
} O-O-O {[%emt 0:00:57]} 15. a3 {[%emt 0:12:57]} Kc7 {[%emt 0:03:02]} 16. R6d2
{[%emt 0:01:11]} Be6 {[%emt 0:09:17]} 17. Rxd8 {[%emt 0:02:45]} Rxd8 {[%emt 0:
00:00]} 18. Rxd8 {[%emt 0:03:04]} Kxd8 {[%emt 0:00:12]} 19. Nd4 {[%emt 0:00:20]
} Kd7 {[%emt 0:03:53]} 20. f4 {[%emt 0:04:17]} c5 {[%emt 0:06:28]} 21. Nxe6 {
[%emt 0:02:01]} Kxe6 {[%emt 0:00:34]} 22. Kd2 {[%emt 0:00:45]} g6 {[%emt 0:00:
00]} 23. Ke3 {[%emt 0:01:23]} Nc6 {[%emt 0:01:56]} 24. Na4 {[%emt 0:02:12]} Nd4
{[%emt 0:07:50]} 25. c3 {[%emt 0:00:23]} Nc6 {[%emt 0:01:10]} 26. Nxb6 {
[%emt 0:00:06]} Kd6 {[%emt 0:00:35]} 27. Nc4+ {[%emt 0:01:17]} Ke6 {[%emt 0:00:
00]} 28. b4 {[%emt 0:02:26]} cxb4 {[%emt 0:00:14]} 29. axb4 {[%emt 0:00:09]} h6
{[%emt 0:00:29]} 30. Na5 {[%emt 0:00:45]} Nxa5 {[%emt 0:00:39]} 31. bxa5 {
[%emt 0:00:03]} Kd6 {[%emt 0:00:36]} 32. Kd4 {[%emt 0:00:09]} Kc6 {[%emt 0:00:
00]} 33. c4 {[%emt 0:01:05]} Kd6 {[%emt 0:00:22]} 34. e5+ {[%emt 0:02:54]}
fxe5+ {[%emt 0:00:32]} 35. fxe5+ {[%emt 0:00:07]} Kc6 {[%emt 0:00:27]} 36. e6 {
[%emt 0:01:07]} Kd6 {[%emt 0:00:35]} 37. e7 {[%emt 0:00:04]} Kxe7 {[%emt 0:00:
00]} 38. Kc5 {[%emt 0:00:03]} Kd7 {[%emt 0:00:44]} 39. Kb6 {[%emt 0:00:03]} Kd6
{[%emt 0:00:32]} 40. c5+ {[%emt 0:00:12]} Kd7 {[%emt 0:00:33]} 41. Kb7 {
[%emt 0:30:15]} g5 {[%emt 0:01:56]} 42. c6+ {[%emt 0:00:00]} 1-0

[Event "44th Chess Olympiad Women 2022"]
[Site "Chennai"]
[Date "2022.08.03"]
[Round "6.78"]
[White "Alvarado Perez, Coralys M."]
[Black "Andre, Chineva Rufino"]
[Result "1-0"]
[WhiteElo "1471"]
[BlackElo "1171"]
[Annotator "NA RC"]
[PlyCount "68"]
[EventDate "2022.??.??"]
[TimeControl "60"]

1. e4 {[%emt 0:00:08]} e5 {[%emt 0:00:11]} 2. d4 {[%emt 0:00:05]} exd4 {
[%emt 0:04:02]} 3. Qxd4 {[%emt 0:00:11]} Nc6 {[%emt 0:03:06]} 4. Qe3 {[%emt 0:
00:00]} b6 {[%emt 0:02:12]} 5. Nc3 {[%emt 0:00:28]} Bc5 {[%emt 0:01:27]} 6. Qe2
{[%emt 0:02:51]} Bb7 {[%emt 0:07:47]} 7. Be3 {[%emt 0:02:02]} Bxe3 {[%emt 0:00:
00]} 8. Qxe3 {[%emt 0:00:12]} Nf6 {[%emt 0:02:07]} 9. O-O-O {[%emt 0:00:33]}
Qe7 {[%emt 0:03:18]} 10. f3 {[%emt 0:01:31]} a5 {[%emt 0:03:20]} 11. g4 {
[%emt 0:01:09]} d6 {[%emt 0:03:22]} 12. Nge2 {[%emt 0:01:14]} Nd7 {[%emt 0:00:
00]} 13. Nd5 {[%emt 0:01:43]} Qd8 {[%emt 0:03:22]} 14. h4 {[%emt 0:03:26]} Nb4
{[%emt 0:01:41]} 15. Nec3 {[%emt 0:01:14]} Nxd5 {[%emt 0:01:26]} 16. exd5+ {
[%emt 0:03:49]} Qe7 {[%emt 0:01:43]} 17. Qxe7+ {[%emt 0:00:36]} Kxe7 {[%emt 0:
00:00]} 18. Re1+ {[%emt 0:00:13]} Kd8 {[%emt 0:00:23]} 19. Bb5 {[%emt 0:01:11]}
Ne5 {[%emt 0:02:47]} 20. Re3 {[%emt 0:01:14]} Ba6 {[%emt 0:01:29]} 21. Bxa6 {
[%emt 0:02:25]} Rxa6 {[%emt 0:00:17]} 22. Rhe1 {[%emt 0:00:31]} Ng6 {[%emt 0:
00:00]} 23. h5 {[%emt 0:01:04]} Ne5 {[%emt 0:05:00]} 24. Nb5 {[%emt 0:01:26]}
Ra8 {[%emt 0:02:10]} 25. Nd4 {[%emt 0:00:51]} g6 {[%emt 0:04:55]} 26. hxg6 {
[%emt 0:01:37]} hxg6 {[%emt 0:00:56]} 27. b3 {[%emt 0:01:50]} Kd7 {[%emt 0:00:
00]} 28. f4 {[%emt 0:04:23]} Nxg4 {[%emt 0:08:21]} 29. Re7+ {[%emt 0:00:09]}
Kc8 {[%emt 0:00:39]} 30. Rxf7 {[%emt 0:00:13]} Kb7 {[%emt 0:00:34]} 31. Nb5 {
[%emt 0:00:15]} Rac8 {[%emt 0:03:59]} 32. Nxd6+ {[%emt 0:00:22]} Kb8 {[%emt 0:
00:00]} 33. Nxc8 {[%emt 0:00:22]} Kxc8 {[%emt 0:00:09]} 34. Ree7 {[%emt 0:00:
00]} Nh6 {[%emt 0:01:52]} 1-0

[Event "44th Chess Olympiad Women 2022"]
[Site "Chennai"]
[Date "2022.08.03"]
[Round "6.78"]
[White "Castro, Neusa Aridas De"]
[Black "Morales Santos, Natasha"]
[Result "1/2-1/2"]
[WhiteElo "1531"]
[BlackElo "1924"]
[Annotator "NA RC"]
[PlyCount "140"]
[EventDate "2022.??.??"]
[TimeControl "60"]

1. e4 {[%emt 0:00:18]} e6 {[%emt 0:00:50]} 2. Nf3 {[%emt 0:00:35]} d5 {[%emt 0:
00:00]} 3. exd5 {[%emt 0:00:36]} exd5 {[%emt 0:00:11]} 4. d4 {[%emt 0:00:10]}
Bd6 {[%emt 0:00:10]} 5. Be2 {[%emt 0:00:17]} Ne7 {[%emt 0:00:17]} 6. c3 {
[%emt 0:00:42]} O-O {[%emt 0:00:38]} 7. O-O {[%emt 0:00:23]} Nbc6 {[%emt 0:00:
00]} 8. Nbd2 {[%emt 0:01:29]} Ng6 {[%emt 0:04:47]} 9. Re1 {[%emt 0:04:46]} Bf5
{[%emt 0:13:44]} 10. Nf1 {[%emt 0:04:02]} Nf4 {[%emt 0:01:42]} 11. Bb5 {
[%emt 0:01:10]} Be4 {[%emt 0:08:30]} 12. Ng3 {[%emt 0:02:09]} f5 {[%emt 0:00:
00]} 13. h3 {[%emt 0:06:35]} a6 {[%emt 0:18:40]} 14. Bf1 {[%emt 0:02:43]} Ng6 {
[%emt 0:10:23]} 15. Ng5 {[%emt 0:07:16]} Bxg3 {[%emt 0:15:09]} 16. fxg3 {
[%emt 0:03:32]} Qd6 {[%emt 0:01:48]} 17. g4 {[%emt 0:15:58]} Rae8 {[%emt 0:00:
00]} 18. Bd2 {[%emt 0:01:17]} Nd8 {[%emt 0:06:46]} 19. gxf5 {[%emt 0:02:49]}
Bxf5 {[%emt 0:00:25]} 20. Qh5 {[%emt 0:08:27]} h6 {[%emt 0:00:25]} 21. Rxe8 {
[%emt 0:02:22]} Rxe8 {[%emt 0:00:01]} 22. Nf3 {[%emt 0:00:16]} Rf8 {[%emt 0:00:
00]} 23. Re1 {[%emt 0:05:23]} Be4 {[%emt 0:01:07]} 24. Nh2 {[%emt 0:04:36]} c6
{[%emt 0:02:59]} 25. Qg4 {[%emt 0:00:48]} Qf6 {[%emt 0:02:19]} 26. Qe2 {
[%emt 0:01:27]} Nf4 {[%emt 0:01:45]} 27. Bxf4 {[%emt 0:01:00]} Qxf4 {[%emt 0:
00:00]} 28. Ng4 {[%emt 0:00:47]} Nf7 {[%emt 0:01:05]} 29. Qe3 {[%emt 0:02:12]}
Qxe3+ {[%emt 0:01:58]} 30. Rxe3 {[%emt 0:00:25]} Nd6 {[%emt 0:00:14]} 31. Ne5 {
[%emt 0:00:46]} Nf5 {[%emt 0:01:49]} 32. Re1 {[%emt 0:00:07]} Ng3 {[%emt 0:00:
00]} 33. Nd7 {[%emt 0:01:24]} Rf7 {[%emt 0:00:07]} 34. Nc5 {[%emt 0:00:56]} h5
{[%emt 0:01:20]} 35. Nxe4 {[%emt 0:00:47]} Nxe4 {[%emt 0:00:32]} 36. Bd3 {
[%emt 0:00:20]} Nf6 {[%emt 0:00:58]} 37. Bg6 {[%emt 0:00:41]} Rc7 {[%emt 0:00:
00]} 38. Re6 {[%emt 0:00:56]} Kf8 {[%emt 0:00:40]} 39. Kf2 {[%emt 0:01:03]} Re7
{[%emt 0:00:42]} 40. Rxe7 {[%emt 0:02:05]} Kxe7 {[%emt 0:00:02]} 41. Ke3 {
[%emt 0:30:12]} b6 {[%emt 0:09:36]} 42. Kf4 {[%emt 0:00:00]} h4 {[%emt 0:04:35]
} 43. Kg5 {[%emt 0:04:43]} c5 {[%emt 0:00:55]} 44. Kxh4 {[%emt 0:00:00]} cxd4 {
[%emt 0:00:00]} 45. cxd4 {[%emt 0:00:00]} Nd7 {[%emt 0:00:29]} 46. Kg5 {
[%emt 0:00:00]} Nb8 {[%emt 0:00:39]} 47. Kf4 {[%emt 0:00:00]} Nc6 {[%emt 0:00:
00]} 48. Ke3 {[%emt 0:00:00]} Kf6 {[%emt 0:01:00]} 49. Bh5 {[%emt 0:00:00]} Nb4
{[%emt 0:00:56]} 50. a3 {[%emt 0:00:00]} Nc2+ {[%emt 0:00:46]} 51. Kd2 {
[%emt 0:00:00]} Nxd4 {[%emt 0:00:19]} 52. Kc3 {[%emt 0:00:00]} Ke5 {[%emt 0:00:
00]} 53. Kd3 {[%emt 0:00:00]} Ne6 {[%emt 0:01:39]} 54. g3 {[%emt 0:00:00]} Nc5+
{[%emt 0:05:11]} 55. Ke3 {[%emt 0:00:00]} d4+ {[%emt 0:00:00]} 56. Kf3 {
[%emt 0:00:28]} Nd3 {[%emt 0:01:05]} 57. b3 {[%emt 0:01:45]} a5 {[%emt 0:01:03]
} 58. Bg6 {[%emt 0:01:24]} Nc1 {[%emt 0:01:15]} 59. b4 {[%emt 0:03:17]} Na2 {
[%emt 0:01:18]} 60. bxa5 {[%emt 0:01:03]} bxa5 {[%emt 0:00:02]} 61. a4 {
[%emt 0:00:38]} Nc3 {[%emt 0:01:21]} 62. Bc2 {[%emt 0:00:23]} Nd5 {[%emt 0:00:
00]} 63. h4 {[%emt 0:01:16]} Ne3 {[%emt 0:04:35]} 64. Bd3 {[%emt 0:01:00]} Nd5
{[%emt 0:00:27]} 65. g4 {[%emt 0:02:38]} Nf4 {[%emt 0:01:34]} 66. Bf1 {[%emt 0:
00:00]} Ng6 {[%emt 0:00:32]} 67. h5 {[%emt 0:00:51]} Nf4 {[%emt 0:00:02]} 68.
Bc4 {[%emt 0:00:46]} Nh3 {[%emt 0:00:18]} 69. Bd3 {[%emt 0:01:46]} Ng5+ {
[%emt 0:00:55]} 70. Kg3 {[%emt 0:00:22]} Ne6 {[%emt 0:00:33]} 1/2-1/2

[Event "44th Chess Olympiad Women 2022"]
[Site "Chennai"]
[Date "2022.08.03"]
[Round "6.78"]
[White "Rivera Negron Yanira"]
[Black "Vilhete, Vania Fausto Da T."]
[Result "1/2-1/2"]
[WhiteElo "1770"]
[BlackElo "1701"]
[Annotator "NA RC"]
[PlyCount "129"]
[EventDate "2022.??.??"]
[TimeControl "60"]

1. d4 {[%emt 0:00:06]} Nf6 {[%emt 0:00:12]} 2. Nf3 {[%emt 0:00:06]} e6 {
[%emt 0:00:17]} 3. Bf4 {[%emt 0:00:16]} d5 {[%emt 0:00:20]} 4. e3 {[%emt 0:00:
00]} c5 {[%emt 0:00:26]} 5. c3 {[%emt 0:00:19]} Be7 {[%emt 0:00:47]} 6. Bd3 {
[%emt 0:01:17]} Nbd7 {[%emt 0:02:07]} 7. Nbd2 {[%emt 0:01:51]} b6 {[%emt 0:00:
00]} 8. h3 {[%emt 0:04:46]} Bb7 {[%emt 0:00:12]} 9. O-O {[%emt 0:01:26]} O-O {
[%emt 0:00:43]} 10. Ne5 {[%emt 0:04:24]} Ne4 {[%emt 0:14:44]} 11. Nxe4 {
[%emt 0:07:35]} dxe4 {[%emt 0:00:19]} 12. Bb5 {[%emt 0:07:59]} Nxe5 {[%emt 0:
00:00]} 13. Bxe5 {[%emt 0:01:32]} f6 {[%emt 0:15:19]} 14. Bg3 {[%emt 0:04:56]}
Qd5 {[%emt 0:02:26]} 15. Qe2 {[%emt 0:02:48]} Rac8 {[%emt 0:11:16]} 16. c4 {
[%emt 0:09:39]} Qf5 {[%emt 0:00:54]} 17. Rad1 {[%emt 0:03:54]} Rfd8 {[%emt 0:
00:00]} 18. dxc5 {[%emt 0:04:57]} Bxc5 {[%emt 0:01:09]} 19. Rxd8+ {[%emt 0:00:
00]} Rxd8 {[%emt 0:00:49]} 20. Rd1 {[%emt 0:00:13]} Rd3 {[%emt 0:06:49]} 21. a3
{[%emt 0:02:43]} a5 {[%emt 0:02:45]} 22. Ba4 {[%emt 0:07:33]} Ba6 {[%emt 0:00:
00]} 23. Bc2 {[%emt 0:00:00]} Rxd1+ {[%emt 0:03:16]} 24. Bxd1 {[%emt 0:05:53]}
e5 {[%emt 0:00:00]} 25. Qc2 {[%emt 0:01:14]} Qd7 {[%emt 0:04:41]} 26. Be2 {
[%emt 0:03:21]} Bb7 {[%emt 0:00:00]} 27. Bg4 {[%emt 0:09:17]} f5 {[%emt 0:00:
00]} 28. Qd1 {[%emt 0:00:27]} Qxd1+ {[%emt 0:02:46]} 29. Bxd1 {[%emt 0:00:07]}
Bd6 {[%emt 0:01:13]} 30. Bh4 {[%emt 0:01:49]} Bc7 {[%emt 0:04:45]} 31. Ba4 {
[%emt 0:06:15]} h6 {[%emt 0:01:54]} 32. g4 {[%emt 0:03:26]} g5 {[%emt 0:00:27]}
33. Bg3 {[%emt 0:00:04]} f4 {[%emt 0:00:10]} 34. Bh2 {[%emt 0:00:56]} Kf7 {
[%emt 0:01:52]} 35. Kf1 {[%emt 0:00:20]} Ke6 {[%emt 0:00:41]} 36. Ke2 {[%emt 0:
00:00]} Ba6 {[%emt 0:00:50]} 37. Bb3 {[%emt 0:01:23]} f3+ {[%emt 0:03:23]} 38.
Kd2 {[%emt 0:00:00]} Kf6 {[%emt 0:00:16]} 39. Kc3 {[%emt 0:00:17]} Bd6 {
[%emt 0:00:27]} 40. Bc2 {[%emt 0:00:29]} Bb7 {[%emt 0:00:15]} 41. b4 {[%emt 0:
00:00]} axb4+ {[%emt 0:30:12]} 42. axb4 {[%emt 0:00:12]} Bc6 {[%emt 0:00:34]}
43. Bb3 {[%emt 0:01:04]} Bb7 {[%emt 0:02:03]} 44. Bc2 {[%emt 0:00:10]} Bc6 {
[%emt 0:00:47]} 45. Bb3 {[%emt 0:00:19]} Bb7 {[%emt 0:00:00]} 46. Ba4 {[%emt 0:
00:00]} Be7 {[%emt 0:00:00]} 47. Bd7 {[%emt 0:00:00]} Bd6 {[%emt 0:00:00]} 48.
Kb3 {[%emt 0:00:00]} Ke7 {[%emt 0:00:00]} 49. Bf5 {[%emt 0:00:00]} Bc6 {
[%emt 0:00:00]} 50. c5 {[%emt 0:00:00]} bxc5 {[%emt 0:00:00]} 51. bxc5 {
[%emt 0:00:00]} Bc7 {[%emt 0:00:00]} 52. Kc4 {[%emt 0:00:00]} Kf6 {[%emt 0:00:
00]} 53. Bh7 {[%emt 0:00:00]} Kg7 {[%emt 0:00:00]} 54. Bf5 {[%emt 0:00:00]} Kf6
{[%emt 0:00:00]} 55. Bg3 {[%emt 0:00:00]} Bb8 {[%emt 0:00:00]} 56. Bc8 {
[%emt 0:00:00]} Bc7 {[%emt 0:05:18]} 57. Ba6 {[%emt 0:00:00]} Ke6 {[%emt 0:00:
00]} 58. Bc8+ {[%emt 0:00:00]} Kf6 {[%emt 0:00:00]} 59. Bf5 {[%emt 0:00:00]}
Bb8 {[%emt 0:00:00]} 60. Bh7 {[%emt 0:00:00]} Kg7 {[%emt 0:00:00]} 61. Bf5 {
[%emt 0:00:00]} Kf6 {[%emt 0:00:00]} 62. Bh7 {[%emt 0:00:00]} Kg7 {[%emt 0:00:
00]} 63. Bf5 {[%emt 0:00:00]} Kf6 {[%emt 0:00:00]} 64. Bh7 {[%emt 0:00:00]} Kg7
{[%emt 0:00:00]} 65. Bf5 {[%emt 0:00:00]} 1/2-1/2